{"text_format":"1","workbook":"xlsx","n_sheets":1,"sheets":["Лист1"],"not_rendered":{"charts":0,"images":0,"macros":0,"external_links":0,"defined_names":0,"comments":0,"pivot_tables":0},"unopened":[],"bounds":{"document_bytes":16777216,"sheet_cells":100000,"rows_first":2000,"rows_last":500,"rows_between":2000,"halvings":0,"cell_chars":16384,"cell_head_chars":4096},"cells_cut":0,"cells_raw":0,"read":"whole","date_system":"1900"}

{"sheet":"Лист1","index":0,"n_rows":85,"n_cols":5,"rows_kept":85,"cut":false,"hidden":false,"merged":[]}
[]
[null,null,"Прайс-лист IP АТС Lynks",null,"Q1 2017"]
[]
[null,"Название","Описание","Цена, руб. без НДС","Цена, руб. с НДС"]
[]
[null,"1. Семейство TBE 51"]
[null,"Lynks TBE51","IP-АТС до 50 абонентов, 0 потоков Е1, 0 портов FXS, 0 портов FXO",55000,{"$f":"D7*1.18","v":64900}]
[null,"Lynks TBE101","IP-АТС до 100 абонентов, 0 потоков Е1, 0 портов FXS, 0 портов FXO",77000,90860]
[]
[null,"2. Семейство TBE 102"]
[null,"Lynks TBE102-00000","IP-АТС до 100 абонентов, 0 потоков Е1, 0 портов FXS, 0 портов FXO",89485,{"$f":"D11*1.18","v":105592.29999999999}]
[null,"Lynks TBE102-00016","IP-АТС до 100 абонентов, 0 потоков Е1, 0 портов FXS, 16 портов FXO",119885,141464.29999999999]
[null,"Lynks TBE102-01600","IP-АТС до 100 абонентов, 0 потоков Е1, 16 портов FXS, 0 портов FXO",119885,141464.29999999999]
[null,"Lynks TBE102-01616","IP-АТС до 100 абонентов, 0 потоков Е1, 16 портов FXS, 16 портов FXO",150285,177336.3]
[null,"Lynks TBE102-02408","IP-АТС до 100 абонентов, 0 потоков Е1, 24 порта FXS, 8 портов FXO",150285,177336.3]
[null,"Lynks TBE102-00824","IP-АТС до 100 абонентов, 0 потоков Е1, 8 портов FXS, 24 порта FXO",150285,177336.3]
[null,"Lynks TBE102-20000","IP-АТС до 100 абонентов, 2 потока Е1, 0 портов FXS, 0 портов FXO",114485,135092.29999999999]
[null,"Lynks TBE102-21600","IP-АТС до 100 абонентов, 2 потока Е1, 16 портов FXS, 0 портов FXO",144885,170964.3]
[null,"Lynks TBE102-20808","IP-АТС до 100 абонентов, 2 потока Е1, 8 портов FXS, 8 портов FXO",144885,170964.3]
[]
[null,"3. Семейство TBE 301"]
[null,"Lynks TBE301-00000","IP-АТС до 300 абонентов, 0 потоков Е1, 0 портов FXS, 0 портов FXO",164292,{"$f":"D22*1.18","v":193864.56}]
[null,"Lynks TBE301-00808","IP-АТС до 300 абонентов, 0 потоков Е1, 8 портов FXS, 8 портов FXO",194692,229736.56]
[null,"Lynks TBE301-01600","IP-АТС до 300 абонентов, 0 потоков Е1, 16 портов FXS, 0 портов FXO",194692,229736.56]
[null,"Lynks TBE301-00016","IP-АТС до 300 абонентов, 0 потоков Е1, 0 портов FXS, 16 портов FXO",194692,229736.56]
[null,"Lynks TBE301-20000","IP-АТС до 300 абонентов, 2 потока Е1, 0 портов FXS, 0 портов FXO",189292,223364.56]
[null,"Lynks TBE301-40000","IP-АТС до 300 абонентов, 4 потока Е1, 0 портов FXS, 0 портов FXO",214292,252864.56]
[]
[null,"4. Семейство TBE 304"]
[null,"Lynks TBE304-00000","IP-АТС до 300 абонентов, 0 потоков Е1, 0 портов FXS, 0 портов FXO",164292,{"$f":"D30*1.18","v":193864.56}]
[null,"Lynks TBE304-00016","IP-АТС до 300 абонентов, 0 потоков Е1, 0 портов FXS, 16 портов FXO",194692,229736.56]
[null,"Lynks TBE304-00032","IP-АТС до 300 абонентов, 0 потоков Е1, 0 портов FXS, 32 порта FXO",225092,265608.56]
[null,"Lynks TBE304-00048","IP-АТС до 300 абонентов, 0 потоков Е1, 0 портов FXS, 48 портов FXO",255492,301480.56]
[null,"Lynks TBE304-01600","IP-АТС до 300 абонентов, 0 потоков Е1, 16 портов FXS, 0 портов FXO",194692,229736.56]
[null,"Lynks TBE304-03200","IP-АТС до 300 абонентов, 0 потоков Е1, 32 порта FXS, 0 портов FXO",225092,265608.56]
[null,"Lynks TBE304-04800","IP-АТС до 300 абонентов, 0 потоков Е1, 48 портов FXS, 0 портов FXO",255492,301480.56]
[null,"Lynks TBE304-01616","IP-АТС до 300 абонентов, 0 потоков Е1, 16 портов FXS, 16 портов FXO",225092,265608.56]
[null,"Lynks TBE304-01632","IP-АТС до 300 абонентов, 0 потоков Е1, 16 портов FXS, 32 порта FXO",255492,301480.56]
[null,"Lynks TBE304-03216","IP-АТС до 300 абонентов, 0 потоков Е1, 32 порта FXS, 16 портов FXO",255492,301480.56]
[]
[null,"Lynks TBE304-20000","IP-АТС до 300 абонентов, 2 потока Е1, 0 портов FXS, 0 портов FXO",189292,{"$f":"D41*1.18","v":223364.56}]
[null,"Lynks TBE304-20016","IP-АТС до 300 абонентов, 2 потока Е1, 0 портов FXS, 16 портов FXO",219692,259236.56]
[null,"Lynks TBE304-20032","IP-АТС до 300 абонентов, 2 потока Е1, 0 портов FXS, 32 порта FXO",250092,295108.56]
[null,"Lynks TBE304-20048","IP-АТС до 300 абонентов, 2 потока Е1, 0 портов FXS, 48 портов FXO",280492,330980.56]
[null,"Lynks TBE304-21600","IP-АТС до 300 абонентов, 2 потока Е1, 16 портов FXS, 0 портов FXO",219692,259236.56]
[null,"Lynks TBE304-23200","IP-АТС до 300 абонентов, 2 потока Е1, 32 порта FXS, 0 портов FXO",250092,295108.56]
[null,"Lynks TBE304-24800","IP-АТС до 300 абонентов, 2 потока Е1, 48 портов FXS, 0 портов FXO",280492,330980.56]
[null,"Lynks TBE304-21616","IP-АТС до 300 абонентов, 2 потока Е1, 16 портов FXS, 16 портов FXO",250092,295108.56]
[null,"Lynks TBE304-21632","IP-АТС до 300 абонентов, 2 потока Е1, 16 портов FXS, 32 порта FXO",280492,330980.56]
[null,"Lynks TBE304-23216","IP-АТС до 300 абонентов, 2 потока Е1, 32 порта FXS, 16 портов FXO",280492,330980.56]
[]
[null,"Lynks TBE304-40000","IP-АТС до 300 абонентов, 4 потока Е1, 0 портов FXS, 0 портов FXO",214292,{"$f":"D52*1.18","v":252864.56}]
[null,"Lynks TBE304-40016","IP-АТС до 300 абонентов, 4 потока Е1, 0 портов FXS, 16 портов FXO",244692,288736.56]
[null,"Lynks TBE304-40016","IP-АТС до 300 абонентов, 4 потока Е1, 8 портов FXS, 8 портов FXO",244692,288736.56]
[null,"Lynks TBE304-40032","IP-АТС до 300 абонентов, 4 потока Е1, 0 портов FXS, 32 порта FXO",275092,324608.56]
[null,"Lynks TBE304-41600","IP-АТС до 300 абонентов, 4 потока Е1, 16 портов FXS, 0 портов FXO",244692,288736.56]
[null,"Lynks TBE304-43200","IP-АТС до 300 абонентов, 4 потока Е1, 32 порта FXS, 0 портов FXO",275092,324608.56]
[null,"Lynks TBE304-44800","IP-АТС до 300 абонентов, 4 потока Е1, 48 портов FXS, 0 портов FXO",305492,360480.56]
[null,"Lynks TBE304-41616","IP-АТС до 300 абонентов, 4 потока Е1, 16 портов FXS, 16 портов FXO",275092,324608.56]
[null,"Lynks TBE304-41632","IP-АТС до 300 абонентов, 4 потока Е1, 16 портов FXS, 32 порта FXO",305492,360480.56]
[null,"Lynks TBE304-43216","IP-АТС до 300 абонентов, 4 потока Е1, 32 порта FXS, 16 портов FXO",305492,360480.56]
[]
[null,"5. Семейство TBE 500",null,"Цена не публикуется на сайте, заказчику предоставляется по запросу."]
[null,"Lynks TBE500-00000","IP-АТС до 500 абонентов, 0 потоков Е1, 0 портов FXS, 0 портов FXO",225300,{"$f":"D64*1.18","v":265854}]
[null,"Lynks TBE500-00808","IP-АТС до 500 абонентов, 0 потоков Е1, 8 портов FXS, 8 портов FXO",255700,301726]
[null,"Lynks TBE500-01600","IP-АТС до 500 абонентов, 0 потоков Е1, 16 портов FXS, 0 портов FXO",255700,301726]
[null,"Lynks TBE500-00016","IP-АТС до 500 абонентов, 0 потоков Е1, 0 портов FXS, 16 портов FXO",255700,301726]
[null,"Lynks TBE500-20000","IP-АТС до 500 абонентов, 2 потока Е1, 0 портов FXS, 0 портов FXO",250300,295354]
[null,"Lynks TBE500-40000","IP-АТС до 500 абонентов, 4 потока Е1, 0 портов FXS, 0 портов FXO",275300,324854]
[]
[null,"6. Семейство TBE 1000",null,"Цена не публикуется на сайте, заказчику предоставляется по запросу."]
[null,"Lynks TBE1000-00000","IP-АТС до 1000 абонентов, 0 потоков Е1, 0 портов FXS, 0 портов FXO",410000,{"$f":"D72*1.18","v":483800}]
[null,"Lynks TBE1000-00808","IP-АТС до 1000 абонентов, 0 потоков Е1, 8 портов FXS, 8 портов FXO",455000,536900]
[null,"Lynks TBE1000-01600","IP-АТС до 1000 абонентов, 0 потоков Е1, 16 портов FXS, 0 портов FXO",455000,536900]
[null,"Lynks TBE1000-00016","IP-АТС до 1000 абонентов, 0 потоков Е1, 0 портов FXS, 16 портов FXO",455000,536900]
[null,"Lynks TBE1000-20000","IP-АТС до 1000 абонентов, 2 потока Е1, 0 портов FXS, 0 портов FXO",495000,584100]
[null,"Lynks TBE1000-40000","IP-АТС до 1000 абонентов, 4 потока Е1, 0 портов FXS, 0 портов FXO",527000,621860]
[null,"Lynks TBE2000-00000","IP-АТС до 2000 абонентов, 0 потоков Е1, 0 портов FXS, 0 портов FXO","По запросу","По запросу"]
[null,"7. Дополнительные опции"]
[null,"Lynks TBE51-Rail","Крепление в стойку 10 и 19 дюймов",1100,{"$f":"D80*1.18","v":1298}]
[null,"Lynks HD2-320","Жесткий диск для записей на 320 ГБ для TBE 51, 101, 102",2990,3528.2]
[null,"Lynks HD3-1000","Жесткий диск для записей на 1000 ГБ для TBE 301, 304, 500, 1000",3990,4708.2]
[null,"Lynks CC50","Программный модуль коллцентра для TBE 51, 101, 102",39000,46020]
[null,"Lynks CC300","Программный модуль коллцентра для TBE 301, 304",99000,116820]
[null,"Lynks CC500","Программный модуль коллцентра для TBE 500, 1000",139000,164020]